Cogmind - Beta 17 @@@ ROGUE MODE // 2026.07.24 @ 17:03:23 Player: Ry645 Result: Destroyed by P-80 Master with Gamma Rifle Performance ------------- Evolutions (8) 4000 Regions Visited (19) 3800 Robots Destroyed (146) 730 Value Destroyed (3646) 3646 Prototype IDs (69) 1380 Alien Tech Used (0) 0 Bonus (1627) 1627 TOTAL SCORE: 15183 Bonus ------- High Alert Combat Kills 247 Follower Combat Kills 80 Hunted by Unchained 500 Entered DSFs 500 Aligned with FarCom 300 Cogmind --------- Core Integrity 0/1450 Matter 299/300 Energy 100/100 System Corruption 8% Temperature Cool (0) Movement Core (50) Location -2/Research Parts ------- > --- POWER (2) -------- (None) > --- PROPULSION (7) --- (None) > --- UTILITY (12) ----- Visual Processing Unit Hacking Suite Hacking Suite System Shield > --- WEAPON (2) ------- (None) > --- INVENTORY (5) ---- Dispersion Rifle Peak State ------------ > --- POWER ------------ (None) > --- PROPULSION ------- Improved VTOL Module Improved VTOL Module Improved VTOL Module Xenon Bombardment Thruster Cooled VTOL Module Field Propulsion Array > --- UTILITY ---------- Advanced Power Amplifier Compact Battery Visual Processing Unit Advanced ECM Suite Hacking Suite Hacking Suite Hacking Suite Hacking Suite Advanced Hacking Suite System Shield System Shield Advanced System Shield > --- WEAPON ----------- Dispersion Rifle Hardcell Cannon > --- INVENTORY -------- (None) [Rating: 95] Favorites ----------- Power Ion Engine Engine Ion Engine Power Core Micro Nuclear Core Propulsion Light Treads Treads Light Treads Flight Unit Improved VTOL Module Utility Hacking Suite Device Heat Sink Storage Huge Storage Unit Processor Visual Processing Unit Hackware Hacking Suite Protection Weapon Shielding Weapon Shotgun Energy Gun Beam Rifle Energy Cannon Advanced Plasma Cannon Ballistic Gun Shotgun Ballistic Cannon Improved Light Cannon Launcher Improved Grenade Launcher Special Weapon Mining Laser Slashing Weapon Longsword +1 Build | -11 -10 -10 -10 -9 -8 -7 -7 -6 -6 -5 -5 -5 -4 -4 -4 -4 -4 -3 -2 ------- Run | Yrd Mat Min Exi Min Mat Fac Sto Fac DSF Fac Was Fac Fac Ext Cet Arc Hub Res Res Slots Evolved 16 | . . . . . 4 2 . 2 . 2 . . 2 . . . . 2 2 Power 1 | . . . . . . . . . . . . . . . . . . 1 . Propulsion 5 | . . . . . 1 1 . 1 . . . . 1 . . . . 1 . Utility 10 | . . . . . 3 1 . 1 . 2 . . 1 . . . . . 2 Weapon . | . . . . . . . . . . . . . . . . . . . . Parts Attached 105 | 6 17 . . . 28 22 . 4 2 3 1 3 . 2 . . 1 9 7 Power 13 | 1 2 . . . 3 3 . 1 . . . . . 1 . . . 2 . Engine 4 | 1 2 . . . 1 . . . . . . . . . . . . . . Core 8 | . . . . . 2 3 . 1 . . . . . 1 . . . 1 . Reactor 1 | . . . . . . . . . . . . . . . . . . 1 . Propulsion 22 | 2 3 . . . 6 6 . 1 1 . . . . . . . . 2 1 Treads 11 | 2 3 . . . 6 . . . . . . . . . . . . . . Leg . | . . . . . . . . . . . . . . . . . . . . Wheel . | . . . . . . . . . . . . . . . . . . . . Hover . | . . . . . . . . . . . . . . . . . . . . Flight 11 | . . . . . . 6 . 1 1 . . . . . . . . 2 1 Utility 45 | 1 6 . . . 9 12 . 2 . 2 . 3 . 1 . . 1 3 5 Device 14 | . 3 . . . 5 3 . . . . . . . 1 . . . 1 1 Storage 5 | 1 2 . . . . 1 . . . . . . . . . . . . 1 Processor 3 | . . . . . 1 1 . 1 . . . . . . . . . . . Hackware 17 | . . . . . . 5 . 1 . 2 . 3 . . . . 1 2 3 Protection 6 | . 1 . . . 3 2 . . . . . . . . . . . . . Artifact . | . . . . . . . . . . . . . . . . . . . . Weapon 25 | 2 6 . . . 10 1 . . 1 1 1 . . . . . . 2 1 Energy Gun 3 | . . . . . 2 . . . . . . . . . . . . . 1 Energy Cannon 1 | . . . . . . . . . . 1 . . . . . . . . . Ballistic Gun 10 | 2 4 . . . 3 . . . . . 1 . . . . . . . . Ballistic Cannon 3 | . . . . . 1 . . . . . . . . . . . . 2 . Launcher 5 | . 1 . . . 3 1 . . . . . . . . . . . . . Special Weapon 1 | . 1 . . . . . . . . . . . . . . . . . . Impact Weapon . | . . . . . . . . . . . . . . . . . . . . Slashing Weapon 2 | . . . . . 1 . . . 1 . . . . . . . . . . Piercing Weapon . | . . . . . . . . . . . . . . . . . . . . Special Melee Weapon . | . . . . . . . . . . . . . . . . . . . . Unidentified Prototypes 3 | . . . . . . 2 . . 1 . . . . . . . . . . Parts Lost 42 | . . . . . 6 . 1 . . . . . . 2 1 3 . 14 15 Power 7 | . . . . . 2 . . . . . . . . 1 . . . 4 . Propulsion 11 | . . . . . 2 . . . . . . . . . . 2 . 1 6 Utility 18 | . . . . . 2 . . . . . . . . 1 . 1 . 6 8 Weapon 6 | . . . . . . . 1 . . . . . . . 1 . . 3 1 Highest Loss Streak 13 | . . . . . 3 . 1 . . . . . . 2 1 3 . 7 13 To Critical Strikes 1 | . . . . . . . . . . . . . . . 1 . . . . Average Backups 14 | 1 12 23 24 24 24 6 8 5 5 4 5 5 3 3 3 3 4 3 . Power . | . . 1 1 1 1 . 1 . . . . . . . . . . . . Propulsion 3 | . 3 7 8 8 6 . 2 1 1 1 2 2 1 1 1 1 1 . . Utility 4 | . 2 6 5 5 6 4 5 4 4 2 3 3 2 2 2 2 3 3 . Weapon 5 | 1 5 9 10 10 10 . . . . . . . . . . . . . . Tool/Special . | . . . . . . . . . . . . . . . . . . . . Unused Backups 29 | . 8 . 2 . 11 5 . . . 1 . . 1 . . . . 1 . Power 4 | . 1 . . . 2 . . . . 1 . . . . . . . . . Propulsion 7 | . 1 . . . 4 1 . . . . . . 1 . . . . . . Utility 8 | . 3 . 2 . 1 1 . . . . . . . . . . . 1 . Weapon 10 | . 3 . . . 4 3 . . . . . . . . . . . . . Tool/Special . | . . . . . . . . . . . . . . . . . . . . Average Slot Usage (%) 95 | . 96 100 100 100 94 98 100 91 93 99 98 99 99 99 97 89 81 79 65 Engine 5 | . 14 14 14 14 1 . . . . . . . . . . . . . . Core 3 | . . . . . 6 7 7 6 6 5 5 5 5 5 5 5 5 4 . Treads 18 | . 27 28 28 28 26 . . . . . . . . . . . . . . Flight 9 | . . . . . . 28 30 33 33 29 29 29 31 31 31 28 21 24 19 Device 8 | . 10 . . . 17 4 . . . . . . . 1 5 5 5 2 4 Storage 8 | . 14 14 14 14 9 3 7 1 . . . . . . . . . . 1 Processor 2 | . . . . . . 6 7 11 13 11 11 11 10 10 10 10 10 5 4 Hackware 10 | . . . . . . 27 30 31 33 35 41 41 36 36 36 33 34 35 30 Protection 6 | . 1 14 14 14 13 1 . . . 4 . . 4 2 . . . . . Energy Gun 1 | . . . . . 4 . . . . . . . . . . . . . 2 Ballistic Gun 12 | . 26 27 28 28 8 . . . . . 3 4 5 5 2 . . . . Launcher 2 | . . . . . 3 6 7 . . . . . . . . . . . . Slashing Weapon 1 | . . . . . . 6 7 6 6 5 5 5 5 5 5 5 5 1 . Peak Build Rating 95 | 6 10 12 12 12 33 49 50 54 59 66 66 72 81 83 83 75 68 91 95 Average Rating 29 | 4 8 11 11 12 22 44 49 53 54 64 65 66 80 81 78 69 67 73 68 On Entrance 45 | . 6 9 12 12 12 28 49 47 54 59 64 66 72 81 83 75 63 68 55 Avg Prop Armor Cover (%) 9 | . . . . . . . . . . . . . . . . . . 1 10 Naked Turns . | . . . . . . . . . . . . . . . . . . . . Heaviest Build 105 | 13 91 92 92 92 105 102 20 9 12 22 16 16 20 20 17 10 10 31 23 Greatest Support 60 | 40 40 40 40 40 60 60 21 26 26 26 26 26 31 31 31 31 20 32 36 Greatest Overweight (x) 2 | . 2 2 2 2 2 1 . . . 1 . . . . . . . 1 . Average Overweight (x) . | . . 2 2 2 1 . . . . . . . . . . . . . . Largest Inventory Capacity 25 | 8 25 25 25 25 25 25 8 8 5 5 5 5 5 5 5 5 5 5 5 Average Capacity 16 | 7 17 25 25 25 25 7 8 5 5 5 5 5 5 5 5 5 5 5 5 Most Carried 25 | 6 22 25 25 25 25 25 8 7 5 5 5 5 5 5 3 4 5 5 2 Average Carried 14 | 2 12 23 24 24 24 6 8 4 5 4 5 5 3 3 3 3 4 3 . Final Capacity 25 | 8 25 25 25 25 25 8 8 5 5 5 5 5 5 5 5 5 5 5 5 Final Carried 25 | 2 22 25 25 25 25 8 8 5 5 5 5 5 4 3 3 4 5 3 1 Class Distribution -------------------- 42% | Mutant 24% | Scavenger-Mutant 15% | Hacker-Sprinter 10% | Wizard-Scout 3% | Wizard-Sprinter Dominant Class ---------------- Mutant | -10/Materials Mutant | -10/Mines Mutant | -10/Exiles Mutant | -9/Mines Mutant | -8/Materials Hacker-Sprinter | -7/Factory Hacker-Sprinter | -7/Storage Hacker-Scout | -6/Factory Hacker-Scout | -6/DSF Wizard-Scout | -5/Factory Wizard-Scout | -5/Waste Wizard-Scout | -5/Factory Wizard-Scout | -4/Factory Wizard-Scout | -4/Extension Wizard-Scout | -4/Cetus Wizard-Scout | -4/Archives Wizard-Scout | -4/Hub_04(d) Wizard-Sprinter | -3/Research Wizard-Sprinter | -2/Research Resources | -11 -10 -10 -10 -9 -8 -7 -7 -6 -6 -5 -5 -5 -4 -4 -4 -4 -4 -3 -2 ----------- Run | Yrd Mat Min Exi Min Mat Fac Sto Fac DSF Fac Was Fac Fac Ext Cet Arc Hub Res Res Matter Collected 4833 | 268 1041 22 94 . 1550 825 160 28 . 49 . . 235 54 . 35 . 472 . Remotely . | . . . . . . . . . . . . . . . . . . . . Salvage Created 4131 | 77 819 22 . . 1690 813 141 26 . 49 . . 24 214 147 35 . 74 . Parts 273 | . 69 4 . . 104 53 16 1 . 8 . . 3 3 5 1 . 6 . Haulers Intercepted 12 | . 2 . . . 4 4 . . . . . . . 2 . . . . . Recyclers Shooed 10 | . 3 1 . . 3 . 3 . . . . . . . . . . . . Parts Field Recycled . | . . . . . . . . . . . . . . . . . . . . Retrieved Matter . | . . . . . . . . . . . . . . . . . . . . Parts Self-Destructed . | . . . . . . . . . . . . . . . . . . . . Prevented . | . . . . . . . . . . . . . . . . . . . . Parts Restored . | . . . . . . . . . . . . . . . . . . . . Kills | -11 -10 -10 -10 -9 -8 -7 -7 -6 -6 -5 -5 -5 -4 -4 -4 -4 -4 -3 -2 ------- Run | Yrd Mat Min Exi Min Mat Fac Sto Fac DSF Fac Was Fac Fac Ext Cet Arc Hub Res Res Combat Hostiles Destroyed 88 | . 19 2 . . 37 20 5 . . . . . . . 2 . . 3 . Melee 3 | . . . . . . 1 . . . . . . . . . . . 2 . Guns 42 | . 19 2 . . 19 . . . . . . . . . 2 . . . . Cannons 4 | . . . . . 3 . . . . . . . . . . . . 1 . AOE 39 | . . . . . 15 19 5 . . . . . . . . . . . . Classes Destroyed 14 | 1 6 . . . 3 3 1 . . . . . . . . . . . . Worker 15 | . 2 . . . 2 9 . 1 . . . . 1 . . . . . . Builder 5 | . . . . . 2 1 2 . . . . . . . . . . . . Tunneler 6 | . . . . . 2 2 . . . 2 . . . . . . . . . Hauler 12 | . 2 . . . 4 4 . . . . . . . 2 . . . . . Recycler 8 | 1 1 . . . 5 1 . . . . . . . . . . . . . Operator 10 | . 4 . . . 3 1 1 . . . . . . . . 1 . . . Watcher 11 | . 3 . . . 3 3 1 . . 1 . . . . . . . . . Swarmer 32 | . 9 2 . . 14 1 3 . . . . . . . . . . 3 . Grunt 33 | . 10 . . . 17 5 1 . . . . . . . . . . . . Duelist 1 | . . . . . . 1 . . . . . . . . . . . . . Sentry 6 | . . . . . 6 . . . . . . . . . . . . . . Hunter 1 | . . . . . . . 1 . . . . . . . . . . . . Programmer 4 | . . . . . . 4 . . . . . . . . . . . . . Cetus Guard 2 | . . . . . . . . . . . . . . . 2 . . . . Assembled 9 | . . . . . . 9 . . . . . . . . . . . . . Best Kill Streak 12 | 1 3 2 . . 10 12 4 1 . 3 . . 1 1 2 1 . 3 . Combat Bots Only 9 | . 3 2 . . 6 9 3 . . . . . . . 2 . . 3 . Max Kills in Single Turn 5 | 1 2 1 . . 3 5 2 1 . 1 . . 1 1 1 1 . 1 . Gunslinging 1 | . 1 . . . . . . . . . . . . . . . . . . Exploded 2 | . . . . . 2 2 2 . . . . . . . . . . . . Melee 1 | . . . . . . 1 . . . . . . . . . . . 1 . Uniques/NPCs Destroyed . | . . . . . . . . . . . . . . . . . . . . Combat | -11 -10 -10 -10 -9 -8 -7 -7 -6 -6 -5 -5 -5 -4 -4 -4 -4 -4 -3 -2 -------- Run | Yrd Mat Min Exi Min Mat Fac Sto Fac DSF Fac Was Fac Fac Ext Cet Arc Hub Res Res Hostile Shots Fired 729 | . 88 5 . . 153 36 68 . . 2 . . 2 24 22 28 4 105 192 Missed 319 | . 23 1 . . 40 21 42 . . 1 . . 1 14 11 15 2 50 98 Hits 410 | . 65 4 . . 113 15 26 . . 1 . . 1 10 11 13 2 55 94 Projectile 410 | . 65 4 . . 113 15 26 . . 1 . . 1 10 11 13 2 55 94 Critical Strikes 19 | . . . . . 6 . . . . . . . . . 2 . . 5 6 Part Disruptions 1 | . . . . . . . . . . . . . . . . . . 1 . Damage Taken 7371 | . 615 29 . . 1581 293 336 . . 43 . . 27 338 283 349 24 1292 2161 Core 2557 | . 88 7 . . 161 74 125 . . . . . . 62 102 136 . 350 1452 Absorbed by Shields . | . . . . . . . . . . . . . . . . . . . . Redirected to Shielding 52 | . . 4 . . 32 16 . . . . . . . . . . . . . Regen/Repaired (Parts) 679 | . 131 . . . 136 134 . . . . . 160 . . . . . 118 . Core Remaining (%) 81 | 100 . . . 62 70 . 71 . 100 . . 100 . . . . 73 73 . Volleys Fired 310 | 2 120 3 . . 120 29 13 . . . . . . . 14 . . 7 2 Largest 2 | 2 2 2 . . 2 1 1 . . . . . . . 1 . . 1 1 Hottest 112 | 40 100 46 . . 112 36 36 . . . . . . . 40 . . 47 88 Shots Fired 524 | 4 207 6 . . 240 29 14 . . . . 1 . . 14 . . 7 2 Gun 424 | 4 203 6 . . 194 . . . . . . 1 . . 14 . . . 2 Cannon 20 | . . . . . 13 . . . . . . . . . . . . 7 . Launcher 78 | . 2 . . . 33 29 14 . . . . . . . . . . . . Special 2 | . 2 . . . . . . . . . . . . . . . . . . Kinetic 382 | 4 203 6 . . 147 . . . . . . 1 . . 14 . . 7 . Thermal 64 | . 2 . . . 60 . . . . . . . . . . . . . 2 Explosive 78 | . 2 . . . 33 29 14 . . . . . . . . . . . . Electromagnetic . | . . . . . . . . . . . . . . . . . . . . Robot Hit Streak 13 | 2 12 4 . . 13 5 10 . . . . . . . 7 . . 6 1 Robot Miss Streak 10 | 1 7 3 . . 10 3 2 . . . . . . . 2 . . 2 . Penetration Max 1 | . . . . . . . . . . . . . . . 1 . . . . Secondary Targets 3 | . 1 . . . 2 . . . . . . . . . . . . . . Max Gunslinging Chain 1 | . 1 . . . 1 . . . . . . . . . . . . . . Shots Hit Robots 348 | 3 113 3 . . 148 29 17 1 . 6 . . 1 6 11 1 . 8 1 Core Hits 246 | 2 60 3 . . 105 50 13 1 . 2 . . . 3 5 . . 2 . Critical Kills 2 | . . . . . . . . . . . . . . . 2 . . . . Critical Parts Destroyed 3 | . . . . . . . . . . . . . . . 3 . . . . Critical Strikes 17 | . . . . . 6 2 . . . . . . . . 7 . . 2 . Burn 4 | . . . . . 4 . . . . . . . . . . . . . . Destroy 7 | . . . . . . . . . . . . . . . 7 . . . . Blast 3 | . . . . . 2 . . . . . . . . . . . . 1 . Sever 3 | . . . . . . 2 . . . . . . . . . . . 1 . Melee Attacks 95 | . . . . . 9 26 10 2 . 11 . 3 8 9 6 1 . 10 . Impact . | . . . . . . . . . . . . . . . . . . . . Slashing 95 | . . . . . 9 26 10 2 . 11 . 3 8 9 6 1 . 10 . Piercing . | . . . . . . . . . . . . . . . . . . . . Sneak Attacks 17 | . . . . . . 7 2 1 . 2 . . 1 2 . 1 . 1 . Combat Hostiles . | . . . . . . . . . . . . . . . . . . . . Follow-up Attacks . | . . . . . . . . . . . . . . . . . . . . Damage Inflicted 11516 | 29 1321 62 . . 3549 3554 1380 70 . 406 . . 95 382 120 135 . 380 33 Guns 3418 | 29 1289 62 . . 1885 . . . . . . . . . 120 . . . 33 Cannons 340 | . . . . . 168 . . . . . . . . . . . . 172 . Explosions 4735 | . 24 . . . 1448 2272 991 . . . . . . . . . . . . Melee 2954 | . . . . . . 1282 389 70 . 406 . . 82 382 . 135 . 208 . Ramming 69 | . 8 . . . 48 . . . . . . . 13 . . . . . . Kinetic 3212 | 29 1289 62 . . 1540 . . . . . . . . . 120 . . 172 . Thermal 1153 | . . . . . 513 607 . . . . . . . . . . . . 33 Explosive 4128 | . 24 . . . 1448 1665 991 . . . . . . . . . . . . Electromagnetic . | . . . . . . . . . . . . . . . . . . . . Impact . | . . . . . . . . . . . . . . . . . . . . Slashing 2954 | . . . . . . 1282 389 70 . 406 . . 82 382 . 135 . 208 . Piercing . | . . . . . . . . . . . . . . . . . . . . Highest Corruption 12 | . . . . . . 1 1 . . . 8 8 . . . . . 12 8 Average Corruption 4 | . . . . . . 1 1 . . . 8 8 . . . . . 4 2 Corruption Purged . | . . . . . . . . . . . . . . . . . . . . Corruption Blocked . | . . . . . . . . . . . . . . . . . . . . Effects 29 | . . . . . . 1 1 . . . 1 16 . . . . . 8 2 Message Errors 6 | . . . . . . 1 . . . . . 3 . . . . . 2 . Matter Fused 8 | . . . . . . . . . . . . 4 . . . . . 3 1 Heat Flow Errors 2 | . . . . . . . . . . . . 2 . . . . . . . Energy Discharges 3 | . . . . . . . . . . . . 3 . . . . . . . Parts Rejected 1 | . . . . . . . . . . . . 1 . . . . . . . Data Loss (minor) 4 | . . . . . . . . . . . 1 1 . . . . . 1 1 Data Loss (major) 1 | . . . . . . . . . . . . 1 . . . . . . . Misfires 2 | . . . . . . . 1 . . . . 1 . . . . . . . Misdirections 2 | . . . . . . . . . . . . . . . . . . 2 . Overload Shots . | . . . . . . . . . . . . . . . . . . . . Overflow Damage 1163 | . . . . . 7 613 213 . . 99 . . 42 . . 90 . 99 . Projectiles 20 | . . . . . . . . . . . . . . . . . . 20 . Explosions 501 | . . . . . 7 384 110 . . . . . . . . . . . . Melee 642 | . . . . . . 229 103 . . 99 . . 42 . . 90 . 79 . Knockbacks 5 | . 1 . . . 3 . . . . . . . . . . . . 1 . Impact 2 | . 1 . . . 1 . . . . . . . . . . . . . . Kinetic 2 | . . . . . 1 . . . . . . . . . . . . 1 . Secondary 1 | . . . . . 1 . . . . . . . . . . . . . . Self-Inflicted Damage 164 | . 6 . . . 64 55 33 . . . . . 6 . . . . . . Shots 4 | . . . . . 2 1 1 . . . . . . . . . . . . Rammed 9 | . 1 . . . 7 . . . . . . . 1 . . . . . . Targets Rammed 13 | . 1 . . . 11 . . . . . . . 1 . . . . . . Kicked . | . . . . . . . . . . . . . . . . . . . . Crushed 4 | . . . . . 4 . . . . . . . . . . . . . . Highest Temperature 243 | . 20 . . . 60 7 12 1 . 8 . 243 70 119 . . . . 4 Average Temperature 26 | . 7 . . . 21 3 7 1 . 2 . 142 25 46 . . . . 3 Received Heat Transfer 1095 | . 162 . . . 711 24 54 . . 9 . . . 27 . 63 . 9 36 Siege Activations . | . . . . . . . . . . . . . . . . . . . . Martial Activations . | . . . . . . . . . . . . . . . . . . . . Shielding Activations . | . . . . . . . . . . . . . . . . . . . . Robots Disrupted . | . . . . . . . . . . . . . . . . . . . . Combat Hostiles . | . . . . . . . . . . . . . . . . . . . . Robots Corrupted . | . . . . . . . . . . . . . . . . . . . . Combat Hostiles . | . . . . . . . . . . . . . . . . . . . . Parts Fried . | . . . . . . . . . . . . . . . . . . . . Impact Corruptions . | . . . . . . . . . . . . . . . . . . . . Robots Melted . | . . . . . . . . . . . . . . . . . . . . Combat Hostiles . | . . . . . . . . . . . . . . . . . . . . Parts Melted 3 | . . . . . 3 . . . . . . . . . . . . . . Heat Transferred 1928 | . . . . . 1591 300 . . . . . . . . . . . . 37 Parts Sabotaged . | . . . . . . . . . . . . . . . . . . . . Parts Stolen . | . . . . . . . . . . . . . . . . . . . . Parts Stripped . | . . . . . . . . . . . . . . . . . . . . Power Chain Reactions . | . . . . . . . . . . . . . . . . . . . . Alert | -11 -10 -10 -10 -9 -8 -7 -7 -6 -6 -5 -5 -5 -4 -4 -4 -4 -4 -3 -2 ------- Run | Yrd Mat Min Exi Min Mat Fac Sto Fac DSF Fac Was Fac Fac Ext Cet Arc Hub Res Res Maximum Alert Level 3 | . 1 . . . 3 3 2 . . . . . . . . . . . . Low Security (%) 63 | 100 99 100 . 100 43 . . 100 100 100 100 100 100 100 100 100 100 100 100 Level 1 15 | . . . . . 32 22 76 . . . . . . . . . . . . Level 2 12 | . . . . . 8 57 23 . . . . . . . . . . . . Level 3 8 | . . . . . 15 19 . . . . . . . . . . . . . Level 4 . | . . . . . . . . . . . . . . . . . . . . Level 5 . | . . . . . . . . . . . . . . . . . . . . High Security . | . . . . . . . . . . . . . . . . . . . . Max Security . | . . . . . . . . . . . . . . . . . . . . Peak Influence 749 | 5 206 60 . . 749 738 428 184 98 59 . 15 70 34 40 8 . 122 150 Initial 336 | . . 31 . . . 336 239 184 98 51 . . . 34 2 8 . . 24 Average 225 | . 103 18 . . 286 564 354 164 98 17 . . 27 12 17 2 . 30 17 Influence Increases 4688 | 5 670 70 . . 1423 976 428 6 . 59 . 26 169 10 70 5 5 550 216 Destroy 0b10 Robot/C 1640 | . 380 40 . . 740 220 160 . . . . . . . 40 . . 60 . Destroy 0b10 Robot/NC 345 | 5 60 . . . 105 105 30 5 . 15 . . 5 10 . 5 . . . Destroy Leader 372 | . 90 . . . 174 64 42 . . 2 . . . . . . . . . Allied During Kill 33 | . . . . . . . 33 . . . . . . . . . . . . Successful Hack 243 | . 39 . . . 35 78 6 . . 34 . 20 . . . . 5 20 6 Disable Machine 375 | . . . . . 60 255 30 . . . . . . . 15 . . 15 . Destroy Structure 455 | . 11 . . . 159 179 67 1 . 8 . 6 14 . . . . 10 . Partial Spotted 225 | . . . . . 15 45 60 . . . . . 90 . . . . 15 . Lose Combat Pursuer 900 | . 90 30 . . 135 30 . . . . . . 60 . 15 . . 330 210 Miscellaneous 100 | . . . . . . . . . . . . . . . . . . 100 . Influence Decreases 4558 | 5 589 151 . . 683 1188 549 273 42 157 . 26 99 75 55 25 5 505 131 Entered New Map 1127 | . . 50 . . . 404 289 223 42 47 . . . 36 3 12 . . 21 Time Decay 2578 | 5 589 101 . . 623 614 140 50 . 110 . 26 60 25 42 . 5 134 54 Lost Part 243 | . . . . . 60 . 10 . . . . . . 14 10 13 . 80 56 Lost Ally 170 | . . . . . . 20 110 . . . . . 30 . . . . 10 . Purge Threat 440 | . . . . . . 150 . . . . . . 9 . . . . 281 . Squads Dispatched 43 | . 6 . . . 6 11 6 . . . . 3 . . . . 1 7 3 Investigation 13 | . 2 . . . 1 3 1 . . . . 2 . . . . 1 2 1 Extermination 7 | . . . . . . 4 . . . . . 1 . . . . . 1 1 Reinforcement 15 | . 4 . . . 4 2 3 . . . . . . . . . . 1 1 Assault 4 | . . . . . 1 1 2 . . . . . . . . . . . . Garrison 4 | . . . . . . 1 . . . . . . . . . . . 3 . Intercept . | . . . . . . . . . . . . . . . . . . . . Searches Triggered . | . . . . . . . . . . . . . . . . . . . . Construction Impeded 2 | . . . . . . . 1 . . . . . . . . . . 1 . Haulers Reinforced 2 | . . . . . . 2 . . . . . . . . . . . . . Active Scanning Responses . | . . . . . . . . . . . . . . . . . . . . Cargo Convoy Interrupts . | . . . . . . . . . . . . . . . . . . . . Stealth | -11 -10 -10 -10 -9 -8 -7 -7 -6 -6 -5 -5 -5 -4 -4 -4 -4 -4 -3 -2 --------- Run | Yrd Mat Min Exi Min Mat Fac Sto Fac DSF Fac Was Fac Fac Ext Cet Arc Hub Res Res Distress Signals 18 | . 2 . . . 6 2 1 . . . . . 1 . 2 . 2 . 2 Communications Jammed . | . . . . . . . . . . . . . . . . . . . . Distress Signals . | . . . . . . . . . . . . . . . . . . . . Times Spotted 288 | . 49 4 . . 78 42 17 1 1 3 5 4 7 5 5 4 5 36 22 Peak Tracking Total 16 | . 4 3 . . 6 7 15 1 1 2 5 2 6 5 7 4 5 9 16 Tactical Retreats 24 | . 4 1 . . 6 2 . . . . . . 2 . 1 . . 5 3 ECM-based Alert Blocks 2 | . . . . . . . . . . . . . . . . . . 2 . Traps | -11 -10 -10 -10 -9 -8 -7 -7 -6 -6 -5 -5 -5 -4 -4 -4 -4 -4 -3 -2 ------- Run | Yrd Mat Min Exi Min Mat Fac Sto Fac DSF Fac Was Fac Fac Ext Cet Arc Hub Res Res Traps Triggered 5 | . 1 . . . . 1 . . . 2 . . . . . . . 1 . Indirectly . | . . . . . . . . . . . . . . . . . . . . Trap Hack Attempts . | . . . . . . . . . . . . . . . . . . . . Triggered . | . . . . . . . . . . . . . . . . . . . . Disarmed 6 | . . . . . . . . . . 6 . . . . . . . . . Reprogrammed 1 | . . . . . . 1 . . . . . . . . . . . . . Reused . | . . . . . . . . . . . . . . . . . . . . Traps Extracted . | . . . . . . . . . . . . . . . . . . . . Installed . | . . . . . . . . . . . . . . . . . . . . Triggered . | . . . . . . . . . . . . . . . . . . . . Machines | -11 -10 -10 -10 -9 -8 -7 -7 -6 -6 -5 -5 -5 -4 -4 -4 -4 -4 -3 -2 ---------- Run | Yrd Mat Min Exi Min Mat Fac Sto Fac DSF Fac Was Fac Fac Ext Cet Arc Hub Res Res Machines Disabled 25 | . . . . . 4 17 2 . . . . . . . 1 . . 1 . Max in Single Turn 10 | . . . . . 1 10 1 . . . . . . . 1 . . 1 . Garrison Access 2 | . . . . . . 1 . . . 1 . . . . . . . . . Machines Repaired . | . . . . . . . . . . . . . . . . . . . . Machines Dismantled . | . . . . . . . . . . . . . . . . . . . . Machines Sabotaged . | . . . . . . . . . . . . . . . . . . . . Overloaded Fab Kills . | . . . . . . . . . . . . . . . . . . . . Hacking | -11 -10 -10 -10 -9 -8 -7 -7 -6 -6 -5 -5 -5 -4 -4 -4 -4 -4 -3 -2 --------- Run | Yrd Mat Min Exi Min Mat Fac Sto Fac DSF Fac Was Fac Fac Ext Cet Arc Hub Res Res Machines Accessed 83 | . 7 . 2 . 12 16 5 2 . 6 . 8 6 1 3 . 3 9 3 Terminals 55 | . 4 . . . 6 8 5 1 . 5 . 4 6 1 3 . 3 6 3 Fabricators 5 | . . . . . . 2 . . . . . 2 . . . . . 1 . Repair Stations 7 | . 1 . . . 2 2 . . . . . 1 . . . . . 1 . Recycling Units 8 | . 2 . . . 2 2 . 1 . . . . . . . . . 1 . Scanalyzers 4 | . . . . . 2 1 . . . . . 1 . . . . . . . Garrison Access 2 | . . . . . . 1 . . . 1 . . . . . . . . . Total Hacks 353 | . 20 . 2 . 33 53 19 3 . 32 . 46 31 1 12 . 31 58 12 Successful 236 | . 10 . 2 . 18 41 13 2 . 23 . 28 20 1 9 . 25 38 6 Failed 113 | . 10 . . . 15 12 6 1 . 8 . 17 10 . 3 . 6 19 6 Catastrophic 10 | . 1 . . . 4 . . . . . . . 1 . . . 1 1 2 Database Lockouts 4 | . . . . . . . . . . 1 . 1 1 . . . . 1 . Manual 116 | . 3 . 1 . 4 4 9 . . 8 . 18 13 . . . 14 32 10 Terminals 281 | . 11 . . . 22 32 19 2 . 31 . 31 31 1 12 . 31 46 12 Fabricators 12 | . . . . . . 5 . . . . . 5 . . . . . 2 . Repair Stations 29 | . 5 . . . 4 8 . . . . . 3 . . . . . 9 . Recycling Units 11 | . 4 . . . 2 3 . 1 . . . . . . . . . 1 . Scanalyzers 15 | . . . . . 5 3 . . . . . 7 . . . . . . . Garrison Access 3 | . . . . . . 2 . . . 1 . . . . . . . . . Terminal Hacks 152 | . 3 . 2 . 10 19 10 1 . 18 . 12 16 1 9 . 22 24 5 Record 11 | . . . 1 . 2 . . . . . . . . . 8 . . . . Part Schematic 16 | . . . . . . . . . . 2 . 2 5 . . . 3 4 . Robot Schematic 2 | . . . . . . . . . . . . . . . . . 2 . . Prototype ID Bank 16 | . 2 . . . . 4 3 . . 2 . 1 1 . . . 1 1 1 Open Door 3 | . . . . . . . . . . . . . 1 1 1 . . . . Open DSF 1 | . . . . . . . . 1 . . . . . . . . . . . Level Access Points 8 | . . . . . . . 1 . . 1 . 2 1 . . . 1 1 1 Branch Access Points 4 | . . . . . . 1 . . . . . . 1 . . . 1 1 . Emergency Access Points 7 | . . . . . 2 . . . . . . 1 . . . . 2 2 . Machine Index 2 | . . . . . . . . . . 1 . . . . . . . 1 . Terminal Index 4 | . . . . . . . 1 . . 1 . 1 . . . . . 1 . Fabricator Index 4 | . . . . . . 1 . . . . . . 1 . . . 1 1 . Repair Station Index 1 | . . . . . . . . . . . . . 1 . . . . . . Scanalyzer Index 2 | . . . . . . . . . . . . . 1 . . . 1 . . Alert Level 7 | . . . . . . . . . . 1 . . . . . . 6 . . Unreport Threat 5 | . . . . . . 1 . . . . . . 1 . . . . 3 . Locate Traps 10 | . 1 . . . 2 3 1 . . 1 . 1 . . . . . . 1 Disarm Traps 1 | . . . . . . . . . . 1 . . . . . . . . . Reprogram Traps 1 | . . . . . . 1 . . . . . . . . . . . . . Dispatch Records 1 | . . . . . . . . . . . . . . . . . 1 . . Surveillance Status 1 | . . . . . . . . . . 1 . . . . . . . . . Patrol Status 1 | . . . . . . . . . . 1 . . . . . . . . . Reinforcement Status 1 | . . . . . . 1 . . . . . . . . . . . . . Recall Investigation 6 | . . . . . 1 . 1 . . . . . . . . . . 3 1 Recall Extermination 2 | . . . . . . . . . . . . . . . . . . 1 1 Recall Reinforcements 3 | . . . . . . 2 . . . . . . . . . . . 1 . Recall Assault 1 | . . . . . . . 1 . . . . . . . . . . . . Hauler Manifests 5 | . . . . . 1 . . . . 2 . 1 . . . . 1 . . Registered Components 5 | . . . . . . 1 1 . . 1 . 1 . . . . . 1 . Registered Prototypes 6 | . . . . . . 1 1 . . 1 . 1 1 . . . . 1 . Zone Layout 14 | . . . . . 2 3 . . . 2 . 1 2 . . . 2 2 . Proto ID Catalog 1 | . . . 1 . . . . . . . . . . . . . . . . Fabricator Hacks 11 | . . . . . . 5 . . . . . 4 . . . . . 2 . Network Status 1 | . . . . . . 1 . . . . . . . . . . . . . Load Schematic 5 | . . . . . . 2 . . . . . 2 . . . . . 1 . Build 5 | . . . . . . 2 . . . . . 2 . . . . . 1 . Repair Station Hacks 23 | . 4 . . . 2 8 . . . . . 2 . . . . . 7 . Scan Component 11 | . 2 . . . 1 4 . . . . . 1 . . . . . 3 . Repair 11 | . 2 . . . 1 4 . . . . . 1 . . . . . 3 . Refit 1 | . . . . . . . . . . . . . . . . . . 1 . Recycling Unit Hacks 6 | . 2 . . . 1 1 . 1 . . . . . . . . . 1 . Retrieve Components 6 | . 2 . . . 1 1 . 1 . . . . . . . . . 1 . Scanalyzer 13 | . . . . . 4 3 . . . . . 6 . . . . . . . Insert Component 6 | . . . . . 2 1 . . . . . 3 . . . . . . . Analyze 7 | . . . . . 2 2 . . . . . 3 . . . . . . . Garrison Access Hacks 3 | . . . . . . 2 . . . 1 . . . . . . . . . Seal Access 2 | . . . . . . 1 . . . 1 . . . . . . . . . Coupler Status 1 | . . . . . . 1 . . . . . . . . . . . . . Unauthorized Hacks 28 | . 1 . . . 1 3 3 . . 4 . 4 4 . . . 3 4 1 Terminals 28 | . 1 . . . 1 3 3 . . 4 . 4 4 . . . 3 4 1 Assimilate 16 | . . . . . . 3 1 . . 1 . 4 4 . . . 1 2 . Botnet 8 | . . . . . . . 2 . . 3 . . . . . . 1 1 1 Disrupt 2 | . . . . . . . . . . . . . . . . . 1 1 . Operators 2 | . 1 . . . 1 . . . . . . . . . . . . . . Fabricators . | . . . . . . . . . . . . . . . . . . . . Repair Stations . | . . . . . . . . . . . . . . . . . . . . Recycling Units . | . . . . . . . . . . . . . . . . . . . . Scanalyzers . | . . . . . . . . . . . . . . . . . . . . Garrison Access . | . . . . . . . . . . . . . . . . . . . . Data Cores Recovered 1 | . . . . . . 1 . . . . . . . . . . . . . Used . | . . . . . . . . . . . . . . . . . . . . Hacking Detections 61 | . 6 . . . 9 13 5 . . 3 . 8 4 . . . 3 8 2 Full Trace Events 11 | . 1 . . . 1 3 1 . . . . 2 . . . . . 2 1 Feedback Events 1 | . . . . . . 1 . . . . . . . . . . . . . Corruption 1 | . . . . . . 1 . . . . . . . . . . . . . Feedback Blocked . | . . . . . . . . . . . . . . . . . . . . Robot Schematics Acquired 2 | . . . . . . . . . . . . . . . . . 2 . . Robots Built . | . . . . . . . . . . . . . . . . . . . . Authchips . | . . . . . . . . . . . . . . . . . . . . Time . | . . . . . . . . . . . . . . . . . . . . Total Robot Build Rating . | . . . . . . . . . . . . . . . . . . . . Part Schematics Acquired 17 | . . . . . 1 1 . . . 2 . 4 5 . . . 1 3 . Parts Built 5 | . . . . . . 2 . . . . . 2 . . . . . 1 . Authchips 1 | . . . . . . 1 . . . . . . . . . . . . . Time 347 | . . . . . . 174 . . . . . 106 . . . . . 67 . Total Part Build Rating 22 | . . . . . . 6 . . . . . 12 . . . . . 4 . Part Studies Acquired . | . . . . . . . . . . . . . . . . . . . . Parts Repaired 11 | . 2 . . . 1 4 . . . . . 1 . . . . . 3 . Time 325 | . 52 . . . 26 158 . . . . . 31 . . . . . 58 . Parts Recycled . | . . . . . . . . . . . . . . . . . . . . Recycled Matter . | . . . . . . . . . . . . . . . . . . . . Retrieved Matter . | . . . . . . . . . . . . . . . . . . . . Retrieved Components 30 | . 20 . . . 9 1 . . . . . . . . . . . . . Parts Scanalyzed 6 | . . . . . 2 1 . . . . . 3 . . . . . . . Part Schematics Acquired 4 | . . . . . 1 1 . . . . . 2 . . . . . . . Parts Damaged . | . . . . . . . . . . . . . . . . . . . . Bothacking | -11 -10 -10 -10 -9 -8 -7 -7 -6 -6 -5 -5 -5 -4 -4 -4 -4 -4 -3 -2 ------------ Run | Yrd Mat Min Exi Min Mat Fac Sto Fac DSF Fac Was Fac Fac Ext Cet Arc Hub Res Res Used RIF Installer . | . . . . . . . . . . . . . . . . . . . . Robots Hacked . | . . . . . . . . . . . . . . . . . . . . Non-combat . | . . . . . . . . . . . . . . . . . . . . Combat . | . . . . . . . . . . . . . . . . . . . . Robot Hacks Applied . | . . . . . . . . . . . . . . . . . . . . Relay Couplers Released . | . . . . . . . . . . . . . . . . . . . . Fabnet Peak Effective % . | . . . . . . . . . . . . . . . . . . . . Robots Rewired . | . . . . . . . . . . . . . . . . . . . . Allies Hacked . | . . . . . . . . . . . . . . . . . . . . Hacks Repelled . | . . . . . . . . . . . . . . . . . . . . Allies | -11 -10 -10 -10 -9 -8 -7 -7 -6 -6 -5 -5 -5 -4 -4 -4 -4 -4 -3 -2 -------- Run | Yrd Mat Min Exi Min Mat Fac Sto Fac DSF Fac Was Fac Fac Ext Cet Arc Hub Res Res Total Allies 24 | . . 2 . . . 2 13 . . 1 . 3 1 . . . 1 1 . Largest Group 11 | . . 2 2 . . 1 11 . . 1 1 3 4 1 . . 1 1 . Highest-Rated Group 183 | . . 42 42 . . 26 183 . . 26 26 46 72 10 . . 10 10 . Highest-Rated Ally 31 | . . 31 31 . . 26 31 . . 26 26 26 26 10 . . 10 10 . Total Orders . | . . . . . . . . . . . . . . . . . . . . Ally Attacks 25 | . . . . . . . 25 . . . . . . . . . . . . Total Damage 344 | . . . . . . . 344 . . . . . . . . . . . . Kills 3 | . . . . . . . 3 . . . . . . . . . . . . Allies Corrupted . | . . . . . . . . . . . . . . . . . . . . Allies Melted 1 | . . . . . . 1 . . . . . . . . . . . . . Intel | -11 -10 -10 -10 -9 -8 -7 -7 -6 -6 -5 -5 -5 -4 -4 -4 -4 -4 -3 -2 ------- Run | Yrd Mat Min Exi Min Mat Fac Sto Fac DSF Fac Was Fac Fac Ext Cet Arc Hub Res Res Active Infowar (turns) 4458 | . . . . . 35 1932 290 109 18 354 27 516 153 114 100 19 38 412 341 Optics 4423 | . . . . . . 1932 290 109 18 354 27 516 153 114 100 19 38 412 341 T.N.C. 35 | . . . . . 35 . . . . . . . . . . . . . . Machine Analysis 1549 | . . . . . . . . 105 18 354 27 516 153 114 100 19 38 105 . ECM 224 | . . . . . . 216 . . . . . . . . . . . 8 . Robot Analysis Total . | . . . . . . . . . . . . . . . . . . . . Derelict Logs Recovered . | . . . . . . . . . . . . . . . . . . . . Drone Launches . | . . . . . . . . . . . . . . . . . . . . Drone Recoveries . | . . . . . . . . . . . . . . . . . . . . Exploration | -11 -10 -10 -10 -9 -8 -7 -7 -6 -6 -5 -5 -5 -4 -4 -4 -4 -4 -3 -2 ------------- Run | Yrd Mat Min Exi Min Mat Fac Sto Fac DSF Fac Was Fac Fac Ext Cet Arc Hub Res Res Turns Passed 13378 | 85 3320 326 1128 122 3885 2021 290 109 18 354 27 516 153 114 100 19 38 412 341 Spaces Moved 9757 | 45 1196 98 352 38 1264 2485 587 212 59 579 97 560 417 291 283 67 108 692 327 Core 104 | 4 . . . . . . . . . . . . . . . . . . 100 Treads 3019 | 41 1196 98 352 38 1264 30 . . . . . . . . . . . . . Legs . | . . . . . . . . . . . . . . . . . . . . Wheels . | . . . . . . . . . . . . . . . . . . . . Hover . | . . . . . . . . . . . . . . . . . . . . Flight 6634 | . . . . . . 2455 587 212 59 579 97 560 417 291 283 67 108 692 227 Fastest Speed 20 | 50 160 320 320 320 240 26 26 23 23 23 23 23 20 20 20 20 26 20 25 Average Speed 94 | 150 228 320 320 320 240 29 26 23 23 23 23 23 20 20 20 22 26 25 36 Slowest Speed 320 | 160 320 320 320 320 320 240 26 23 23 99 23 23 20 23 20 26 26 99 50 Overloaded Moves 30 | . . . . . . . . . . . . . . . . . . 30 . Propulsion Burnouts . | . . . . . . . . . . . . . . . . . . . . Robots Hopped 5 | . . . . . . . . . . . . . 5 . . . . . . Potential Cave-ins 4 | . . . . . . . 4 . . . . . . . . . . . . Cave-ins Triggered 1 | . . . . . . 1 . . . . . . . . . . . . . Exploration Rate (%) 42 | 3 99 20 71 15 80 49 69 6 53 11 85 11 11 48 90 82 14 23 15 Regions Visited 19 Branch Regions 8 Pre-discovered Areas 1 | . . . 1 . . . . . . . . . . . . . . . . Known Exits Taken 7 | . . . . . . 1 1 1 . . . 1 1 . . . 1 1 . Unknown Exits Taken 9 | 1 1 1 1 1 1 . . . . . . . . 1 1 1 . . . Scrap Searched 1 | . . . . 1 . . . . . . . . . . . . . . . Spaces Dug 39 | . 2 . . . 9 7 1 1 . 4 . 3 7 . . . . 5 . Terrain Destroyed 471 | . 11 . . . 159 202 79 1 . 4 . 3 7 . . . . 5 . Melee 37 | . . . . . 9 7 1 1 . 4 . 3 7 . . . . 5 . Projectile 3 | . 2 . . . 1 . . . . . . . . . . . . . . AOE 431 | . 9 . . . 149 195 78 . . . . . . . . . . . . Terrain Rammed 1 | . 1 . . . . . . . . . . . . . . . . . . Walls Destroyed . | . . . . . . . . . . . . . . . . . . . . Machines Disabled . | . . . . . . . . . . . . . . . . . . . . Actions | -11 -10 -10 -10 -9 -8 -7 -7 -6 -6 -5 -5 -5 -4 -4 -4 -4 -4 -3 -2 --------- Run | Yrd Mat Min Exi Min Mat Fac Sto Fac DSF Fac Was Fac Fac Ext Cet Arc Hub Res Res Total 13282 | 58 1584 105 357 41 1827 3724 698 269 61 783 100 940 469 332 302 68 117 901 546 Wait 2712 | . 179 . . . 280 1100 87 48 . 181 2 370 44 30 . . 7 175 209 Move 9729 | 44 1195 97 351 37 1263 2484 586 211 58 579 96 559 406 290 282 66 107 691 327 Hop 5 | . . . . . . . . . . . . . 5 . . . . . . Pick Up 112 | 6 37 3 3 2 31 13 1 2 . 5 . . 2 1 . 1 2 3 . Fast Attach 49 | 2 5 . . . 11 10 . . 1 . 1 5 . . . . . 10 4 Attach 50 | 4 5 . . . 7 17 . 2 . 3 . . 2 2 . . 1 4 3 Detach 6 | . 1 . . . . 4 . . . . . . . . . . . . 1 Swap 95 | . 18 2 . . 62 8 . 2 2 1 . . . . . . . . . Drop 105 | . 22 . 3 2 33 33 1 2 . 3 1 3 1 . . . . 1 . Fire 310 | 2 120 3 . . 120 29 13 . . . . . . . 14 . . 7 2 Melee 95 | . . . . . 9 26 10 2 . 11 . 3 8 9 6 1 . 10 . Ram 2 | . 1 . . . . . . . . . . . 1 . . . . . . Kick . | . . . . . . . . . . . . . . . . . . . . Crush 12 | . 1 . . . 11 . . . . . . . . . . . . . . Escape Stasis . | . . . . . . . . . . . . . . . . . . . . Rewire . | . . . . . . . . . . . . . . . . . . . . Trap . | . . . . . . . . . . . . . . . . . . . . Miscellaneous . | . . . . . . . . . . . . . . . . . . . . Route ------- -11/Scrapyard -10/Materials (discovered 5 exits: [*Mat x3] / [*Min] / [*Sub]) -10/Mines -10/Exiles -9/Mines -8/Materials (discovered 2 exits: *Fac x2) -7/Factory (discovered 3 exits: *Sto / *Low x2) -7/Storage -6/Factory -6/DSF -5/Factory (discovered 4 exits: Fac x4) -5/Waste -5/Factory (discovered 4 exits: *Fac x4) -4/Factory (discovered 9 exits: Res x4 / Upp x2 / *Ext x2 / Arm) -4/Extension (discovered 3 exits: *Res x2 / *Cet) -4/Cetus (discovered 2 exits: *Res / *Arc) -4/Archives (discovered 2 exits: *Res / *Hub) -4/Hub_04(d) (discovered 3 exits: *Res x3) -3/Research (discovered 4 exits: *Res x3 / Qua) -2/Research (discovered 3 exits: Acc x3) History --------- Turn | Location | Event 12 | -11/Scrapyard | Discovered new exit (range 16) 86 | -11/Scrapyard | Entered Materials 243 | -10/Materials | Discovered new exit (range 4) 315 | -10/Materials | Build established: Mutant 339 | -10/Materials | Discovered new exit (range 11) 488 | -10/Materials | Discovered new exit (range 10) 646 | -10/Materials | Discovered new exit (range 13) 1208 | -10/Materials | Discovered new exit (range 16) 1784 | -10/Materials | Build established: Scavenger-Mutant 3312 | -10/Materials | Build established: Mutant 3338 | -10/Materials | Repaired Lgt. Treads 3365 | -10/Materials | Repaired Lgt. Treads 3406 | -10/Materials | Entered Mines 3706 | -10/Mines | Deemed a non-threat by the Exiles lab entrance 3709 | -10/Mines | Discovered new exit (range 5) 3732 | -10/Mines | Entered Exiles 3732 | -10/Exiles | Accompanied by 2 allies 3762 | -10/Exiles | Led the pair of lost Derelicts to a safe place 3812 | -10/Exiles | Met 8R-AWN 3864 | -10/Exiles | Met EX-HEX 3972 | -10/Exiles | Met EX-BIN 4011 | -10/Exiles | Aligned with FarCom system 4014 | -10/Exiles | Given EX-Vault access code 4094 | -10/Exiles | Opened EX-Vault 4130 | -10/Exiles | Found Longsword +1 4188 | -10/Exiles | Warned to stay clear of 0b10 Research branches 4281 | -10/Exiles | Met EX-DEC 4313 | -10/Exiles | Learned location of Zion (-7) 4825 | -10/Exiles | Discovered new exit (range 14) 4860 | -10/Exiles | Left Exiles lab with Longsword +1 4860 | -10/Exiles | Entered Mines 4947 | -9/Mines | Discovered new exit (range 12) 4982 | -9/Mines | Entered Materials 4982 | -8/Materials | Evolved 4 slots: Propulsion x1, Utility x3 5832 | -8/Materials | Discovered new exit (range 10) 6345 | -8/Materials | Lost 3 parts (2n1u) 6511 | -8/Materials | Repaired Lgt. Treads 6920 | -8/Materials | Discovered new exit (range 16) 7431 | -8/Materials | Build established: Scavenger-Mutant 8582 | -8/Materials | First assault squad dispatched 8867 | -8/Materials | Entered Factory 8867 | -7/Factory | Evolved 2 slots: Propulsion x1, Utility x1 9054 | -7/Factory | Crushed by falling debris 9060 | -7/Factory | Identified exit to Storage 9060 | -7/Factory | Identified exit to Lower Caves 9249 | -7/Factory | Build established: Hacker-Sprinter 9603 | -7/Factory | Fabricated Imp. VTOL Module (x1) 9672 | -7/Factory | Repaired Imp. VTOL Module 9712 | -7/Factory | Repaired Imp. Grenade Launcher 10004 | -7/Factory | Garrison activated, responded to threat 10050 | -7/Factory | Destroyed 9 combat bots 10165 | -7/Factory | Fabricated Imp. VTOL Module? 10820 | -7/Factory | Repaired Imp. VTOL Module 10852 | -7/Factory | Repaired Imp. VTOL Module 10867 | -7/Factory | First assault squad dispatched 10888 | -7/Factory | Entered Storage 10979 | -7/Storage | Met a pair of Derelict thieves 11108 | -7/Storage | Identified exit to Factory 11121 | -7/Storage | Assisted by bots powering up and referring to "LRC-V3" 11178 | -7/Storage | Entered Factory 11178 | -6/Factory | Evolved 2 slots: Propulsion x1, Utility x1 11180 | -6/Factory | Lost 4 allies 11287 | -6/Factory | Identified exit to DSF 11287 | -6/Factory | Entered DSF 11298 | -6/DSF | Discovered new exit (range 18) 11305 | -6/DSF | Entered Factory 11305 | -5/Factory | Evolved 2 slots: Utility x2 11320 | -5/Factory | Watched by a mysterious "MATRIX" hacker 11338 | -5/Factory | Identified exit to Factory 11519 | -5/Factory | Central database locked down 11593 | -5/Factory | Build established: Wizard-Scout 11659 | -5/Factory | Sucked down chute 11659 | -5/Factory | Entered Waste 11663 | -5/Waste | Spotted C-40 Crusher 11667 | -5/Waste | Spotted C-40 Crusher 11672 | -5/Waste | Spotted C-40 Crusher 11674 | -5/Waste | EMP discharged 11675 | -5/Waste | Spotted C-40 Crusher 11675 | -5/Waste | Spotted C-40 Crusher 11679 | -5/Waste | 1 allies followed down the chute 11679 | -5/Waste | Spotted C-40 Crusher 11682 | -5/Waste | Discovered new exit (range 14) 11686 | -5/Waste | Entered Factory 11719 | -5/Factory | Repaired Broken Hyp. Railgun 12047 | -5/Factory | Fabricated Adv. Hacking Suite (x1) 12157 | -5/Factory | Central database locked down 12195 | -5/Factory | Fabricated Adv. Hacking Suite? 12202 | -5/Factory | Entered another Factory area 12202 | -4/Factory | Accompanied by 3 allies 12202 | -4/Factory | Evolved 2 slots: Propulsion x1, Utility x1 12219 | -4/Factory | Identified exit to Research 12324 | -4/Factory | Discovered new exit (range 6) 12327 | -4/Factory | Identified exit to Upper Caves 12327 | -4/Factory | Identified exit to Extension 12327 | -4/Factory | Identified exit to Armory 12327 | -4/Factory | Central database locked down 12355 | -4/Factory | Entered Extension 12355 | -4/Extension | Accompanied by 1 ally 12385 | -4/Extension | Spotted B-86 Titan 12401 | -4/Extension | Spotted B-86 Titan 12405 | -4/Extension | Discovered exit to Research (range 3) 12446 | -4/Extension | Discovered exit to Research (range 18) 12448 | -4/Extension | Discovered new exit (range 17) 12469 | -4/Extension | Entered Cetus 12472 | -4/Cetus | Spotted Cetus Guard 12472 | -4/Cetus | Spotted Cetus Guard 12472 | -4/Cetus | Spotted Cetus Guard 12477 | -4/Cetus | Discovered exit to Research (range 18) 12489 | -4/Cetus | Destroyed Cetus Guard 12499 | -4/Cetus | Destroyed Cetus Guard 12501 | -4/Cetus | Spotted Cetus Guard 12538 | -4/Cetus | Discovered new exit (range 18) 12569 | -4/Cetus | Entered Archives 12574 | -4/Archives | Unable to access archive contents 12580 | -4/Archives | Unable to access archive contents 12581 | -4/Archives | Discovered exit to Research (range 16) 12583 | -4/Archives | Unable to access archive contents 12584 | -4/Archives | Discovered new exit (range 13) 12588 | -4/Archives | Entered Hub_04(d) 12600 | -4/Hub_04(d) | Discovered exit to Research (range 20) 12600 | -4/Hub_04(d) | Targeted by mysterious "MATRIX" hacker 12615 | -4/Hub_04(d) | Lost 3 parts (2n1u) 12626 | -4/Hub_04(d) | Entered Research 12626 | -3/Research | Evolved 2 slots: Power x1, Propulsion x1 12735 | -3/Research | Identified exit to Research 12735 | -3/Research | Identified exit to Quarantine 12792 | -3/Research | Lost 4 parts (2p2u) 12813 | -3/Research | Garrison activated, responded to threat 12841 | -3/Research | Central database locked down 12907 | -3/Research | Repaired Imp. VTOL Module 12929 | -3/Research | Repaired Imp. VTOL Module 12929 | -3/Research | Fabricated Rocket Array? 12948 | -3/Research | Repaired Mic. Fission Core 12975 | -3/Research | Spotted B-86 Titan 13014 | -3/Research | System corruption reached 10% 13038 | -3/Research | Entered another Research area 13038 | -2/Research | Evolved 2 slots: Utility x2 13068 | -2/Research | Lost 7 parts (2p1n3u1w) 13302 | -2/Research | Identified exit to Access 13326 | -2/Research | Core integrity fell below 50% 13366 | -2/Research | Lost 13 parts (5n8u) 13373 | -2/Research | Core integrity fell below 20% 13379 | -2/Research | Destroyed by P-80 Master with Gamma Rifle Last Messages --------------- 13319_ Penetrated by Slug. 13319_ Slug penetrates H-88 Terminator. 13319_ Critical hit (Burn: +37). 13320_ ALERT: Just where do you think you're going, squad PWRHTLSMQ9? 13320_ P-80 Master resets H-88 Terminator, system corruption cleaned. 13322_ Slug penetrates Wall. 13322_ Penetrated by Slug. 13322_ Hacking Suite destroyed. 13322_ Imp. VTOL Module destroyed. 13326_ Penetrated by Slug. 13330_ Slug penetrates Wall. 13332_ System Shield destroyed. 13335_ Adv. ECM Suite destroyed. 13345_ System corrupted: Component data lost. 13356_ ALERT: Cargo convoy en route, clear transfer corridor. 13372_ P-80 Master resets P-80 Master, system corruption cleaned. Map ----- +----------------------------------------------------+ | ?????????????????????????????????????????????????? | | ?????????????????????????????????????????????????? | | ?????????????????????????????????????????????????? | | ?????????????????????????????????????????????????? | | ?????????????????????????????????????????????????? | | ?????????????????????????????????????????????????? | | ?????????????????????????????????????????????????? | | ?????????????????????????????????????????????????? | | ?????????????????????????????????????????????????? | | ?????????????????????????????????????????????????? | | ?????????????????????????????????????????????????? | | ?????????????????????????????????????????????????? | | ?????????????????????????????????????????????????? | | ?????????????????????????????????????????????????? | | ?????????????????????????????????????????????????? | | ?????????????????????????????????????????????????? | | ?????????????????????????????????????????????????? | | ?????????????????????????????????????????????????? | | ????????????????????????????????Y????????????????? | | ?????????????????????????????????????????????????? | | ?????????????????????????????????????????????????? | | ?????????????????????????????????????????????????? | | ?????????????????????????????????????????????????? | | ???????????????????########??????????????????????? | | ???????????????????# #??????????????????????? | | ???????????????????# = @#??????????????????????? | | ???????????????????# #??????????????????????? | | ???????????????????# #???????#??????????????? | | ???????????????????# #????? ]#??????????????? | | ???????????????????# pp #??? #??????????????? | | ??????????????#########p#### #??????????????? | | ?????????# /p + = #??????????????? | | ?????????# # #### #??????????????? | | ?????????# # #????? #??????????????? | | ?????????# ?# #???????###??????????????? | | ?????????# ? ?# #????????????????????????? | | ?????????#""""? ??# ###########??????????????? | | ???????????"?? ??# #??????????????? | | ?????????????" ???+ #??????????????? | | ?????????????" ????# #??????????????? | | ?????????????" ????+ #??????????????? | | ????????????? ?????######## #???????????#??? | | ??????????????? ?????????????# #???????????# " | | ?????????????????????????????# #???????????# " | | ?????????????????????????????# #???????????# " | | ?????????????????????????????# #???????????# " | | ?????????????????????????????# #???????????# " | | ?????????????????????????????# #???????????? | | ?????????????????????????????# #?????????????? | | ?????????????????????????????# #??????????????? | +----------------------------------------------------+ Best States ------------- Heat Dissipation 77 Energy Generation 27 Energy Capacity 300 Matter Stores 300 Matter Capacity 300 Sight Range 18 Terrain Scan Density 10 ECM Strength 1 Power Amplification 30 Armor Coverage 375 Utility Shielding 66 Weapon Shielding 33 Evasion (%) 66 Recoil Reduction 3 Offensive Hacking 54 Defensive Hacking 36 Authchip Count 1 Item Schematics ----------------- Hacking Suite | -8/Materials | Scanalyzed Imp. VTOL Module | -7/Factory | Scanalyzed Neutrino Core | -5/Factory | Hacked Mni. Grenade Launcher | -5/Factory | Hacked Biomechanical Wings | -5/Factory | Scanalyzed Cld. VTOL Module | -5/Factory | Scanalyzed Adv. Hacking Suite | -5/Factory | Hacked Adv. System Shield | -5/Factory | Hacked Antimatter Reactor | -4/Factory | Hacked Exp. Cesium-ion Thruster | -4/Factory | Hacked Exp. Propulsion Shielding | -4/Factory | Hacked Lyr. Light Armor Plating | -4/Factory | Hacked HERF Cannon | -4/Factory | Hacked Rocket Array | -4/Hub_04(d) | Hacked Machine Analyzer | -3/Research | Hacked Exp. Hacking Suite | -3/Research | Hacked Exp. System Shield | -3/Research | Hacked Robot Schematics ------------------ G-50 Soldier | -4/Hub_04(d) | Hacked O-32 Director | -4/Hub_04(d) | Hacked Fabricated ------------ Imp. VTOL Module | x1 | -7/Factory | Authchip Imp. VTOL Module | x1 | -7/Factory Adv. Hacking Suite | x1 | -5/Factory Adv. Hacking Suite | x1 | -5/Factory Rocket Array | x1 | -3/Research Repaired ---------- Lgt. Treads | 41% | -10/Materials Lgt. Treads | 65% | -10/Materials Lgt. Treads | 2% | -8/Materials Imp. VTOL Module | 8% | -7/Factory Imp. Grenade Launcher | 60% | -7/Factory Imp. VTOL Module | 28% | -7/Factory Imp. VTOL Module | 56% | -7/Factory Hyp. Railgun | 8% | -5/Factory | Broken Imp. VTOL Module | 2% | -3/Research Imp. VTOL Module | 10% | -3/Research Mic. Fission Core | 60% | -3/Research Studied --------- None Alien Tech Used ----------------- None Achievements -------------- It Was An Accident, I Swear Maximum Efficiency Quantum Hacking Recruitment Drive Challenges ------------ None Game ------ Seed RestorationLauncherDrillbomb Manual? 0 Play Time 03:19:58 Cumulative 30.1 hours Start 2026.07.24 @ 13:11:49 End 2026.07.24 @ 17:03:23 Sessions 9 Manual Loads 0 Difficulty Rogue Special Mode None Game No. 20 Rogue 20 Adventurer 0 Explorer 0 Win Type - Total 0 Types 0/0/0/0/0/0/0/0/0/0 Lore% 9 Gallery% 19 Achievement% 22 Wizard Run 0 Options --------- Layout 2 ASCII 0 Keyboard 0 Movement Mouse Keybinds 1 Fullscreen 1 Font 24/Terminus Map View 50x44 Zoom Use 0% Tactical HUD 1 Map Filters NONE Filters NONE Steam 1 RUN: ad446476-098c-49c1-89d4-a2398144a076